Cogmind - Beta 17 @@@ ROGUE MODE // 2026.07.30 @ 00:41:05 Player: LawfulKami Result: Destroyed by H-61 Shepherd with Heavy Assault Cannon Performance ------------- Evolutions (3) 1500 Regions Visited (6) 1200 Robots Destroyed (58) 290 Value Destroyed (1762) 1762 Prototype IDs (5) 100 Alien Tech Used (0) 0 Bonus (500) 500 TOTAL SCORE: 5352 Bonus ------- Follower Combat Kills 500 Cogmind --------- Core Integrity 0/700 Matter 300/300 Energy 100/100 System Corruption 20% Temperature Cool (0) Movement Core (100) Ox1 Location -7/Factory Parts ------- > --- POWER (2) -------- (None) > --- PROPULSION (4) --- (None) > --- UTILITY (5) ------ Improved Targeting Computer Melee Analysis Suite > --- WEAPON (2) ------- Flak Gun > --- INVENTORY (5) ---- Large Matter Pod (150) Improved Datajack Remote Datajack Peak State ------------ > --- POWER ------------ Heavy Deuterium Engine Light Angular Momentum Engine > --- PROPULSION ------- Aluminum Leg Carbon-fiber Leg Carbon-fiber Leg > --- UTILITY ---------- Small Storage Unit Signal Interpreter Melee Analysis Suite Microactuators System Shield > --- WEAPON ----------- Advanced Beam Cannon Katana > --- INVENTORY -------- Large Matter Pod Improved Targeting Computer Heavy Particle Cannon Remote Datajack [Rating: 36] Favorites ----------- Power Improved Deuterium Engine Engine Improved Deuterium Engine Power Core Nuclear Core Propulsion Aluminum Leg Treads Light Treads Leg Aluminum Leg Utility Small Storage Unit Device Microactuators Storage Small Storage Unit Processor Signal Interpreter Hackware System Shield Protection Improved Light Armor Plating Weapon Katana Energy Gun Cooled Pulse Rifle Energy Cannon Advanced Beam Cannon Ballistic Gun Flak Gun Launcher Guided Missile Launcher Slashing Weapon Katana Build | -11 -10 -10 -9 -9 -8 -7 ------- Run | Yrd Mat Min Mat Sto Mat Fac Slots Evolved 6 | . . . 2 . 2 2 Power 1 | . . . . . 1 . Propulsion 2 | . . . 1 . . 1 Utility 3 | . . . 1 . 1 1 Weapon . | . . . . . . . Parts Attached 54 | 6 2 5 5 4 10 22 Power 10 | 1 . 2 . 1 3 3 Engine 8 | 1 . 1 . . 3 3 Core 2 | . . 1 . 1 . . Reactor . | . . . . . . . Propulsion 19 | 2 . 2 2 . 2 11 Treads 5 | 2 . . . . . 3 Leg 14 | . . 2 2 . 2 8 Wheel . | . . . . . . . Hover . | . . . . . . . Flight . | . . . . . . . Utility 13 | 1 1 . 3 1 3 4 Device 4 | . 1 . 2 . . 1 Storage 1 | 1 . . . . . . Processor 4 | . . . 1 . 1 2 Hackware 1 | . . . . . 1 . Protection 3 | . . . . 1 1 1 Artifact . | . . . . . . . Weapon 12 | 2 1 1 . 2 2 4 Energy Gun 2 | 1 . . . . . 1 Energy Cannon 2 | . . 1 . . 1 . Ballistic Gun 3 | 1 . . . . . 2 Ballistic Cannon . | . . . . . . . Launcher 3 | . . . . 2 . 1 Special Weapon . | . . . . . . . Impact Weapon . | . . . . . . . Slashing Weapon 2 | . 1 . . . 1 . Piercing Weapon . | . . . . . . . Special Melee Weapon . | . . . . . . . Unidentified Prototypes 5 | . . . . 1 2 2 Parts Lost 33 | . . . . 1 4 28 Power 7 | . . . . . 1 6 Propulsion 12 | . . . . . 1 11 Utility 8 | . . . . 1 2 5 Weapon 6 | . . . . . . 6 Highest Loss Streak 6 | . . . . 1 2 6 To Critical Strikes . | . . . . . . . Average Backups 5 | 1 4 6 6 6 5 6 Power 1 | . 1 . 1 2 1 . Propulsion . | . 2 2 . . . . Utility 1 | . . 1 2 3 1 1 Weapon 1 | . 1 2 2 1 1 1 Tool/Special . | . . . . . . . Unused Backups 7 | . . 2 . . . 5 Power 1 | . . . . . . 1 Propulsion . | . . . . . . . Utility 1 | . . . . . . 1 Weapon 3 | . . 2 . . . 1 Tool/Special 2 | . . . . . . 2 Average Slot Usage (%) 86 | . 97 100 72 97 84 83 Engine 9 | . 14 7 . . 9 11 Core 3 | . . 7 9 11 8 . Treads 5 | . 28 25 . . . 4 Leg 19 | . . 2 19 32 27 17 Device 4 | . 11 14 8 9 . 2 Storage 7 | . 14 14 11 11 9 5 Processor 11 | . . . 2 11 9 14 Hackware 4 | . . . . . 1 6 Protection 3 | . . . . 1 11 3 Energy Gun 3 | . 14 8 . . . 4 Energy Cannon 2 | . . 5 9 4 . 2 Ballistic Gun 1 | . 11 . . . . 1 Launcher 2 | . . . . 6 4 . Slashing Weapon 5 | . 2 14 11 9 2 4 Peak Build Rating 36 | 6 7 12 21 27 35 36 Average Rating 25 | 5 6 9 13 20 29 31 On Entrance 14 | . 6 7 12 21 27 31 Avg Prop Armor Cover (%) 6 | . . . . . . 6 Naked Turns . | . . . . . . . Heaviest Build 39 | 11 13 21 23 26 39 39 Greatest Support 62 | 40 40 40 40 40 40 62 Greatest Overweight (x) 6 | . . 1 6 . . 3 Average Overweight (x) . | . . . . . . . Largest Inventory Capacity 8 | 8 8 8 8 8 8 8 Average Capacity 7 | 7 8 8 8 8 8 7 Most Carried 8 | 4 6 8 8 8 8 8 Average Carried 5 | 1 4 6 6 7 5 6 Final Capacity 8 | 8 8 8 8 8 8 5 Final Carried 7 | 4 6 6 7 7 3 3 Class Distribution -------------------- 70% | Mutant 17% | Scavenger-Mutant 11% | Commander-Mutant Dominant Class ---------------- Mutant | -10/Materials Mutant | -10/Mines Mutant | -9/Materials Commander-Mutant | -9/Storage Mutant | -8/Materials Mutant | -7/Factory Resources | -11 -10 -10 -9 -9 -8 -7 ----------- Run | Yrd Mat Min Mat Sto Mat Fac Matter Collected 1505 | 215 31 85 . 140 246 788 Remotely . | . . . . . . . Salvage Created 2094 | . 42 . . 158 397 1497 Parts 130 | . 4 . . 14 37 75 Haulers Intercepted 3 | . . . . . 2 1 Recyclers Shooed 4 | . . . . . . 4 Parts Field Recycled . | . . . . . . . Retrieved Matter . | . . . . . . . Parts Self-Destructed . | . . . . . . . Prevented . | . . . . . . . Parts Restored . | . . . . . . . Kills | -11 -10 -10 -9 -9 -8 -7 ------- Run | Yrd Mat Min Mat Sto Mat Fac Combat Hostiles Destroyed 40 | . 3 . . 2 11 24 Melee 11 | . 2 . . 1 1 7 Guns 8 | . 1 . . . . 7 Cannons 2 | . . . . 1 . 1 AOE 18 | . . . . . 10 8 Classes Destroyed 12 | . 1 . . 4 4 3 Worker 5 | . . . . 2 . 3 Builder 5 | . . . . 1 1 3 Tunneler 1 | . . . . . 1 . Hauler 3 | . . . . . 2 1 Recycler 3 | . . . . . 1 2 Swarmer 10 | . 3 . . . 3 4 Grunt 15 | . . . . 1 4 10 Brawler 1 | . . . . . . 1 Duelist 1 | . . . . . . 1 Sentry 9 | . . . . 1 3 5 Hunter 2 | . . . . . 2 . Programmer 3 | . . . . . . 3 Best Kill Streak 7 | . 3 . . 1 4 7 Combat Bots Only 6 | . 3 . . 1 4 6 Max Kills in Single Turn 3 | . 1 . . 1 3 2 Gunslinging . | . . . . . . . Exploded 3 | . . . . . 3 2 Melee 1 | . 1 . . 1 1 1 Uniques/NPCs Destroyed . | . . . . . . . Combat | -11 -10 -10 -9 -9 -8 -7 -------- Run | Yrd Mat Min Mat Sto Mat Fac Hostile Shots Fired 563 | . 42 5 . 29 82 405 Missed 205 | . 10 . . 10 28 157 Hits 358 | . 32 5 . 19 54 248 Melee 8 | . . . . . . 8 Projectile 350 | . 32 5 . 19 54 240 Critical Strikes 8 | . 1 . . . . 7 Damage Taken 4554 | . 262 59 . 238 785 3210 Core 910 | . 57 12 . 30 110 701 Absorbed by Shields . | . . . . . . . Ignored by Resistances 30 | . . . . . 30 . Regen/Repaired (Parts) 76 | . . . . 34 42 . Core Remaining (%) 86 | 100 . 72 . 92 80 . Volleys Fired 95 | . 5 1 . 5 22 62 Largest 2 | . 2 1 . 1 1 2 Hottest 103 | . 70 50 . 75 39 103 Shots Fired 119 | . 6 1 . 5 22 85 Gun 63 | . 6 1 . . . 56 Cannon 15 | . . . . 4 . 11 Launcher 41 | . . . . 1 22 18 Special . | . . . . . . . Kinetic 23 | . 1 . . . . 22 Thermal 55 | . 5 1 . 4 . 45 Explosive 23 | . . . . 1 22 . Electromagnetic 18 | . . . . . . 18 Robot Hit Streak 21 | . 2 . . 1 21 8 Robot Miss Streak 6 | . 2 1 . 2 . 6 Penetration Max . | . . . . . . . Secondary Targets 3 | . . . . . . 3 Max Gunslinging Chain 1 | . . . . . . 1 Shots Hit Robots 132 | . 6 1 . 8 27 90 Core Hits 98 | . 2 . . 4 21 71 Critical Kills . | . . . . . . . Critical Parts Destroyed . | . . . . . . . Critical Strikes 5 | . . . . . 1 4 Sever 5 | . . . . . 1 4 Melee Attacks 52 | . 5 1 . 8 6 32 Impact . | . . . . . . . Slashing 52 | . 5 1 . 8 6 32 Piercing . | . . . . . . . Sneak Attacks 11 | . . . . 3 4 4 Combat Hostiles . | . . . . . . . Follow-up Attacks . | . . . . . . . Damage Inflicted 5373 | . 107 . . 320 1334 3612 Guns 1208 | . 36 . . . . 1172 Cannons 253 | . . . . 28 . 225 Explosions 2052 | . . . . 48 1001 1003 Melee 1831 | . 71 . . 244 333 1183 Ramming 29 | . . . . . . 29 Kinetic 428 | . . . . . . 428 Thermal 1353 | . 36 . . 28 . 1289 Explosive 1049 | . . . . 48 1001 . Electromagnetic 683 | . . . . . . 683 Impact . | . . . . . . . Slashing 1831 | . 71 . . 244 333 1183 Piercing . | . . . . . . . Highest Corruption 20 | . . . . . . 20 Average Corruption 7 | . . . . . . 7 Corruption Purged . | . . . . . . . Corruption Blocked . | . . . . . . . Effects 53 | . . . . . . 53 Message Errors 10 | . . . . . . 10 Matter Fused 9 | . . . . . . 9 Heat Flow Errors 6 | . . . . . . 6 Energy Discharges 3 | . . . . . . 3 Parts Rejected 1 | . . . . . . 1 Parts Fused 1 | . . . . . . 1 Data Loss (minor) 10 | . . . . . . 10 Data Loss (major) 4 | . . . . . . 4 Misfires 4 | . . . . . . 4 Misdirections 3 | . . . . . . 3 Weapon Failures 2 | . . . . . . 2 Overload Shots 19 | . . . . . . 19 Effects 1 | . . . . . . 1 Energy Bleed 1 | . . . . . . 1 Overflow Damage 168 | . 5 . . 10 55 98 Projectiles . | . . . . . . . Explosions 67 | . . . . . . 67 Melee 101 | . 5 . . 10 55 31 Knockbacks . | . . . . . . . Impact . | . . . . . . . Kinetic . | . . . . . . . Secondary . | . . . . . . . Self-Inflicted Damage 45 | . . . . . . 45 Shots 3 | . . . . . . 3 Rammed 1 | . . . . . . 1 Targets Rammed 7 | . . . . . . 7 Kicked 6 | . . . . . . 6 Crushed . | . . . . . . . Highest Temperature 287 | . 30 34 . 72 213 287 Average Temperature 69 | . 12 17 . 33 49 87 Received Heat Transfer 1065 | . . 30 . 87 189 759 Effects 3 | . . . . . . 3 Interference 3 | . . . . . . 3 Siege Activations . | . . . . . . . Martial Activations . | . . . . . . . Shielding Activations . | . . . . . . . Robots Disrupted . | . . . . . . . Combat Hostiles . | . . . . . . . Robots Corrupted 1 | . . . . . . 1 Combat Hostiles 1 | . . . . . . 1 Parts Fried 4 | . . . . . . 4 Impact Corruptions . | . . . . . . . Robots Melted . | . . . . . . . Combat Hostiles . | . . . . . . . Parts Melted 8 | . . . . 1 . 7 Heat Transferred 2001 | . 111 . . 37 . 1853 Parts Sabotaged . | . . . . . . . Parts Stolen . | . . . . . . . Parts Stripped . | . . . . . . . Power Chain Reactions 4 | . . . . . . 4 Alert | -11 -10 -10 -9 -9 -8 -7 ------- Run | Yrd Mat Min Mat Sto Mat Fac Maximum Alert Level 2 | . . . . 2 2 1 Low Security (%) 63 | 100 100 100 100 64 5 67 Level 1 35 | . . . . 32 92 32 Level 2 . | . . . . 2 2 . Level 3 . | . . . . . . . Level 4 . | . . . . . . . Level 5 . | . . . . . . . High Security . | . . . . . . . Max Security . | . . . . . . . Peak Influence 414 | . 60 61 21 414 403 375 Initial 135 | . . 15 3 . 133 135 Average 136 | . 7 27 1 175 304 121 Influence Increases 2248 | . 85 56 21 721 499 866 Destroy 0b10 Robot/C 1160 | . 60 40 20 340 220 480 Destroy 0b10 Robot/NC 100 | . . . . 30 25 45 Destroy Leader 340 | . 10 10 . 114 74 132 Allied During Kill 193 | . . 6 1 180 6 . Successful Hack 29 | . . . . 13 12 4 Disable Machine 60 | . . . . . 30 30 Destroy Structure 186 | . . . . 14 132 40 Partial Spotted 45 | . . . . 30 . 15 Lose Combat Pursuer 135 | . 15 . . . . 120 Influence Decreases 1929 | . 45 85 32 403 519 845 Entered New Map 381 | . . 25 8 . 185 163 Time Decay 1034 | . 45 40 4 213 294 438 Lost Part 294 | . . . . 10 40 244 Lost Ally 220 | . . 20 20 180 . . Squads Dispatched 20 | . 1 1 . 3 2 13 Investigation 4 | . 1 1 . . 1 1 Extermination 3 | . . . . . . 3 Reinforcement 8 | . . . . 1 1 6 Assault . | . . . . . . . Garrison 5 | . . . . 2 . 3 Intercept . | . . . . . . . Searches Triggered . | . . . . . . . Construction Impeded 2 | . . . . . . 2 Haulers Reinforced 1 | . . . . . . 1 Active Scanning Responses . | . . . . . . . Cargo Convoy Interrupts 1 | . . . . . . 1 Stealth | -11 -10 -10 -9 -9 -8 -7 --------- Run | Yrd Mat Min Mat Sto Mat Fac Distress Signals 5 | . 1 . . . 1 3 Communications Jammed . | . . . . . . . Distress Signals . | . . . . . . . Times Spotted 83 | . 7 3 1 18 13 41 Peak Tracking Total 7 | . 4 3 1 4 3 7 Tactical Retreats 5 | . 1 . . . . 4 Traps | -11 -10 -10 -9 -9 -8 -7 ------- Run | Yrd Mat Min Mat Sto Mat Fac Traps Triggered 7 | . 1 . 4 . . 2 Indirectly 1 | . . . . . . 1 Trap Hack Attempts . | . . . . . . . Triggered . | . . . . . . . Disarmed . | . . . . . . . Reprogrammed . | . . . . . . . Reused . | . . . . . . . Traps Extracted . | . . . . . . . Installed . | . . . . . . . Triggered . | . . . . . . . Machines | -11 -10 -10 -9 -9 -8 -7 ---------- Run | Yrd Mat Min Mat Sto Mat Fac Machines Disabled 4 | . . . . . 2 2 Max in Single Turn 2 | . . . . . 1 2 Machines Repaired . | . . . . . . . Machines Dismantled . | . . . . . . . Machines Sabotaged . | . . . . . . . Overloaded Fab Kills . | . . . . . . . Hacking | -11 -10 -10 -9 -9 -8 -7 --------- Run | Yrd Mat Min Mat Sto Mat Fac Machines Accessed 18 | . 1 1 1 6 2 7 Terminals 11 | . 1 . . 5 1 4 Fabricators 1 | . . . . . . 1 Repair Stations 2 | . . . . 1 1 . Recycling Units 2 | . . . 1 . . 1 Scanalyzers 1 | . . . . . . 1 Garrison Access . | . . . . . . . Total Hacks 40 | . 1 1 1 16 5 16 Successful 22 | . 1 1 1 7 2 10 Failed 18 | . . . . 9 3 6 Catastrophic 3 | . . . . . 1 2 Database Lockouts . | . . . . . . . Manual . | . . . . . . . Terminals 20 | . 1 . . 12 2 5 Fabricators 2 | . . . . . . 2 Repair Stations 7 | . . . . 4 3 . Recycling Units 5 | . . . 1 . . 4 Scanalyzers 5 | . . . . . . 5 Garrison Access . | . . . . . . . Terminal Hacks 8 | . 1 1 . 4 . 2 Part Schematic 1 | . . . . 1 . . Open Door 3 | . . 1 . 2 . . Emergency Access Points 1 | . 1 . . . . . Locate Traps 2 | . . . . 1 . 1 Zone Layout 1 | . . . . . . 1 Fabricator Hacks 1 | . . . . . . 1 Network Status 1 | . . . . . . 1 Repair Station Hacks 5 | . . . . 3 2 . Scan Component 3 | . . . . 2 1 . Repair 2 | . . . . 1 1 . Recycling Unit Hacks 5 | . . . 1 . . 4 Recycle Component 1 | . . . . . . 1 Process 1 | . . . . . . 1 Report Inventory 1 | . . . 1 . . . Retrieve Matter 1 | . . . . . . 1 Retrieve Components 1 | . . . . . . 1 Scanalyzer 3 | . . . . . . 3 Insert Component 1 | . . . . . . 1 Analyze 1 | . . . . . . 1 Retrieve Study 1 | . . . . . . 1 Garrison Access Hacks . | . . . . . . . Unauthorized Hacks . | . . . . . . . Terminals . | . . . . . . . Fabricators . | . . . . . . . Repair Stations . | . . . . . . . Recycling Units . | . . . . . . . Scanalyzers . | . . . . . . . Garrison Access . | . . . . . . . Data Cores Recovered . | . . . . . . . Used . | . . . . . . . Hacking Detections 9 | . . . . 5 1 3 Full Trace Events 2 | . . . . 1 1 . Feedback Events . | . . . . . . . Feedback Blocked . | . . . . . . . Robot Schematics Acquired . | . . . . . . . Robots Built . | . . . . . . . Authchips . | . . . . . . . Time . | . . . . . . . Total Robot Build Rating . | . . . . . . . Part Schematics Acquired 2 | . . . . 1 . 1 Parts Built . | . . . . . . . Authchips . | . . . . . . . Time . | . . . . . . . Total Part Build Rating . | . . . . . . . Part Studies Acquired 1 | . . . . . . 1 Parts Repaired 2 | . . . . 1 1 . Time 64 | . . . . 38 26 . Parts Recycled 1 | . . . . . . 1 Recycled Matter 19 | . . . . . . 19 Retrieved Matter 19 | . . . . . . 19 Retrieved Components . | . . . . . . . Parts Scanalyzed 1 | . . . . . . 1 Part Schematics Acquired 1 | . . . . . . 1 Parts Damaged . | . . . . . . . Bothacking | -11 -10 -10 -9 -9 -8 -7 ------------ Run | Yrd Mat Min Mat Sto Mat Fac Used RIF Installer . | . . . . . . . Robots Hacked . | . . . . . . . Non-combat . | . . . . . . . Combat . | . . . . . . . Robot Hacks Applied . | . . . . . . . Relay Couplers Released 3 | . . . . . . 3 Programmers 3 | . . . . . . 3 Fabnet Peak Effective % . | . . . . . . . Robots Rewired . | . . . . . . . Allies Hacked . | . . . . . . . Hacks Repelled . | . . . . . . . Allies | -11 -10 -10 -9 -9 -8 -7 -------- Run | Yrd Mat Min Mat Sto Mat Fac Total Allies 12 | . . 2 . 10 . . Largest Group 10 | . . 2 1 10 1 . Highest-Rated Group 88 | . . 42 31 88 8 . Highest-Rated Ally 31 | . . 31 31 16 8 . Total Orders . | . . . . . . . Ally Attacks 155 | . . 4 4 138 9 . Total Damage 1363 | . . 85 42 1169 67 . Kills 21 | . . 2 1 18 . . Allies Corrupted . | . . . . . . . Allies Melted . | . . . . . . . Intel | -11 -10 -10 -9 -9 -8 -7 ------- Run | Yrd Mat Min Mat Sto Mat Fac Active Infowar (turns) 475 | . 289 89 97 . . . Terrain 475 | . 289 89 97 . . . Robot Analysis Total . | . . . . . . . Derelict Logs Recovered . | . . . . . . . Drone Launches . | . . . . . . . Drone Recoveries . | . . . . . . . Exploration | -11 -10 -10 -9 -9 -8 -7 ------------- Run | Yrd Mat Min Mat Sto Mat Fac Turns Passed 4043 | 147 323 89 186 526 642 2130 Spaces Moved 2461 | 89 182 45 98 333 426 1288 Core 145 | 7 . . 4 . . 134 Treads 506 | 82 182 41 . . . 201 Legs 1810 | . . 4 94 333 426 953 Wheels . | . . . . . . . Hover . | . . . . . . . Flight . | . . . . . . . Fastest Speed 50 | 50 160 160 120 120 120 50 Average Speed 138 | 151 160 162 169 120 120 141 Slowest Speed 350 | 160 160 190 350 120 120 330 Overloaded Moves . | . . . . . . . Propulsion Burnouts . | . . . . . . . Robots Hopped . | . . . . . . . Potential Cave-ins . | . . . . . . . Cave-ins Triggered 1 | . . . . . . 1 Exploration Rate (%) 23 | 4 24 9 7 49 41 28 Regions Visited 6 Branch Regions 2 Pre-discovered Areas . | . . . . . . . Known Exits Taken 3 | . . . 1 1 1 . Unknown Exits Taken 3 | 1 1 1 . . . . Scrap Searched . | . . . . . . . Spaces Dug . | . . . . . . . Terrain Destroyed 237 | . . . . 12 188 37 Melee . | . . . . . . . Projectile 4 | . . . . 2 . 2 AOE 233 | . . . . 10 188 35 Terrain Rammed . | . . . . . . . Walls Destroyed . | . . . . . . . Machines Disabled . | . . . . . . . Actions | -11 -10 -10 -9 -9 -8 -7 --------- Run | Yrd Mat Min Mat Sto Mat Fac Total 2898 | 98 197 59 114 438 525 1467 Wait 172 | . 2 . . 84 51 35 Move 2455 | 88 181 44 97 332 425 1288 Hop . | . . . . . . . Pick Up 27 | 4 2 3 4 1 4 9 Fast Attach 36 | 6 1 . 9 1 3 16 Attach 18 | . . 2 1 2 6 7 Detach 1 | . . . . 1 . . Swap 16 | . 1 3 1 2 3 6 Drop 19 | . . 5 2 2 5 5 Fire 95 | . 5 1 . 5 22 62 Melee 52 | . 5 1 . 8 6 32 Ram 1 | . . . . . . 1 Kick 6 | . . . . . . 6 Crush . | . . . . . . . Escape Stasis . | . . . . . . . Rewire . | . . . . . . . Trap . | . . . . . . . Miscellaneous . | . . . . . . . Route ------- -11/Scrapyard -10/Materials -10/Mines -9/Materials -9/Storage -8/Materials -7/Factory History --------- Turn | Location | Event 13 | -11/Scrapyard | Discovered new exit (range 14) 148 | -11/Scrapyard | Entered Materials 317 | -10/Materials | Build established: Mutant 402 | -10/Materials | Discovered new exit (range 15) 471 | -10/Materials | Entered Mines 472 | -10/Mines | Met a Derelict bent on vengeance 480 | -10/Mines | Discovered new exit (range 10) 497 | -10/Mines | Met a Derelict shopkeep closing up shop 560 | -10/Mines | Entered Materials 560 | -9/Materials | Accompanied by 1 ally 560 | -9/Materials | Evolved 2 slots: Propulsion x1, Utility x1 565 | -9/Materials | Led the pair of lost Derelicts to an unsafe place 707 | -9/Materials | Discovered new exit (range 16) 729 | -9/Materials | Identified exit to Storage 746 | -9/Materials | Entered Storage 780 | -9/Storage | Assisted by bots powering up and referring to "LRC-V3" 940 | -9/Storage | Repaired Carbon-fiber Leg 992 | -9/Storage | Found Prototype Launcher 1088 | -9/Storage | Build established: Commander-Mutant 1137 | -9/Storage | Garrison activated, responded to threat 1175 | -9/Storage | Discovered new exit (range 16) 1182 | -9/Storage | Lost 3 allies 1210 | -9/Storage | Identified Gui. Missile Launcher 1230 | -9/Storage | Identified exit to Materials 1272 | -9/Storage | Entered Materials 1272 | -8/Materials | Accompanied by 1 ally 1272 | -8/Materials | Evolved 2 slots: Power x1, Utility x1 1299 | -8/Materials | Lost 5 allies 1557 | -8/Materials | Build established: Mutant 1818 | -8/Materials | Repaired Broken Hvy. Particle Cannon 1900 | -8/Materials | Discovered new exit (range 6) 1909 | -8/Materials | Identified exit to Factory 1914 | -8/Materials | Entered Factory 1914 | -7/Factory | Evolved 2 slots: Propulsion x1, Utility x1 3071 | -7/Factory | Build established: Scavenger-Mutant 3528 | -7/Factory | Garrison activated, responded to threat 3556 | -7/Factory | System corruption reached 10% 3597 | -7/Factory | Lost 6 parts (3p1n2u) 3652 | -7/Factory | Cargo convoy interrupted 3826 | -7/Factory | Build established: Mutant 3862 | -7/Factory | Core integrity fell below 50% 3892 | -7/Factory | Lost 6 parts (4n2w) 4031 | -7/Factory | Core integrity fell below 20% 4034 | -7/Factory | Crushed by falling debris 4044 | -7/Factory | Destroyed by H-61 Shepherd with Heavy Assault Cannon Last Messages --------------- 04032_ Flak Gun temporarily disabled. 04032_ Imp. Targeting Computer temporarily disabled. 04032_ System corrupted: Hvy. Particle Cannon failed to cycle. 04034_ The unstable cave ceiling collapses. 04034_ Crushed by falling debris. [Achievement: Unlikely Earthworm] 04034_ Hvy. Particle Cannon destroyed. 04034_ System corrupted by crushing effect (+3). 04034_ R-06 Scavenger collects Lgt. Ion Engine. 04034_ U-05 Engineer builds a Wall. 04035_ K-01 Serf collects debris. 04038_ Penetrated by Slug. 04038_ K-01 Serf collects debris. 04039_ C-30 ARC bursts open, deploying its payload. 04039_ P-60 Hacker unfolds itself. 04040_ Knocked back. 04041_ K-01 Serf collects debris. 04041_ U-05 Engineer builds a Wall. 04044_ K-01 Serf collects debris. 04044_ Imp. Targeting Computer destroyed. Map ----- +----------------------------------------------------+ | ?????????????????????????????????????????????????? | | ?????????????????????????????????????????????????? | | ?????????????????????????????????????????????????? | | ?????????????????????????????????????????????????? | | ?????????????????????????????????????????????????? | | ?????????????????????????????????????????????????? | | ?????????????????????????????????????????????????? | | ?????????????????????????????????????????????????? | | ?????????????????????????????????????????????????? | | ?????????????????????????????????????????????????? | | ??????????????????????? ????????????????????????? | | ????????????????????? ????????????????????????? | | ???????????????????# ????????????????????????? | | ???????????????????# ????????????????????????? | | ???????????????????# #???????????????????????? | | ???????????????????# #???????????????????????? | | ???????????????????# ########????????????????? | | ???????????????????# #????????????????? | | ???????????????????# #????????????????? | | ???????????????????#kH #????????????????? | | ???????????????????# +????????????????? | | ???????????????????# #????????????????? | | ???????????????????# #????????????????? | | ????????????########%! #????????????????? | | ????????????# #????????????????? | | ????????????# % @ % #????????????????? | | ????????????# % #????????????????? | | ???########## k % #????????????????? | | ??"" # u% #????????????????? | | ??R" "" # ####;##;; #????????????????? | | ???" "" # ######### #????????????????? | | ?? """ + #???????? ?????????????? | | ?? """ # #???????? ??????????? | | ?? """ + #???????? p ??????????? | | # #????????? k ??????????? | | # #????????? % ??????????? | | ##% ##?????????##o### ???????????? | | ##!% #???????????? g?? ???????????? | | ## #????????????? ??? ????????????? | | ## #????????????? ????????????????? | | ############## ##????????????? ????????????????? | | ????????????# #??????????????????????????????? | | ???########## #??????????????????????????????? | | #### #??????????????????????????????? | | ######## #??????????????????????????????? | | # ## #??????????????????????????????? | | "" + "" ####+#####????????????????????????????? | | "" # "" # #????????????????????????????? | | "" # T" # #????????????????????????????? | | # "" # #????????????????????????????? | +----------------------------------------------------+ Best States ------------- Heat Dissipation 42 Energy Generation 31 Energy Capacity 480 Matter Stores 300 Matter Capacity 300 Sight Range 16 Terrain Scan Range 14 Terrain Scan Density 10 Armor Coverage 300 Resistance: TH 10 Melee Speed Boost 20 Evasion (%) 55 Targeting Accuracy 12 Melee Accuracy 5 Recoil Reduction 3 Particle Charging 15 Defensive Hacking 10 Item Schematics ----------------- Assault Cannon | -9/Storage | Hacked Imp. Datajack | -7/Factory | Scanalyzed Robot Schematics ------------------ None Fabricated ------------ Nothing Repaired ---------- Carbon-fiber Leg | 69% | -9/Storage Hvy. Particle Cannon | 67% | -8/Materials | Broken Studied --------- Katana | -7/Factory | Hacked Alien Tech Used ----------------- None Achievements -------------- Botjacking Jackpot Overkill Unlikely Earthworm Challenges ------------ None Game ------ Seed MicroRapidReplicator Manual? 0 Play Time 01:03:34 Cumulative 8.1 hours Start 2026.07.29 @ 23:24:16 End 2026.07.30 @ 00:41:05 Sessions 1 Manual Loads 0 Difficulty Rogue Special Mode None Game No. 8 Rogue 8 Adventurer 0 Explorer 0 Win Type - Total 0 Types 0/0/0/0/0/0/0/0/0/0 Lore% 3 Gallery% 13 Achievement% 11 Wizard Run 0 Options --------- Layout 0 ASCII 0 Keyboard 1 Movement Arrows Keybinds 0 Fullscreen 1 Font 18/SmallcapsGlow Map View 76x50 Zoom Use 0% Tactical HUD 1 Map Filters NONE Filters NONE Steam 1 RUN: 33b09b89-291a-4415-bb54-c7730fa8feb4